[Event "1. Bamberg-Open 2018"]
[Site "Bamberg"]
[Date "2018.05.13"]
[Round "7"]
[White "Spitzl, Vinzent"]
[Black "Meulner, Klaus"]
[Result "1/2-1/2"]
[ECO "A06"]
[WhiteElo "2254"]
[BlackElo "2120"]
[Annotator "NA RC"]
[PlyCount "108"]
[EventDate "2018.??.??"]
[EventType "swiss"]
[EventCountry "GER"]
[SourceTitle "playchess.com"]
[Source "ChessBase"]
[SourceQuality "1"]
[TimeControl "40/5400+30:900+30"]

{[%evp 8,103,10,0,0,2,8,0,9,0,0,0,6,0,22,-15,0,-10,0,-25,0,7,0,32767,-58,-63,-56,-49,-47,-44,-39,-45,-32,-32,0,0,0,0,0,0,12,12,10,12,13,10,14,32767,12,32767,9,18,20,32767,32767,32767,32767,32767,32767,32767,32767,32767,32767,32767,0,0,0,0,0,0,32767,32767,32767,32767,0,0,0,0,0,0,0,0,0,0,0,0,0,0,0,0,0,0,0,0,0,0,0,0]} 1. Nf3 {[%emt 0:16:15]} d5 {[%emt 0:00:58]} 2. b3 {[%emt 0:00:07]} Bg4 {[%emt 0:03:34]} 3. e3 {[%emt 0:00:16]} e6 {[%emt 0:03:14]} 4. h3 {[%emt 0:00:11]} Qf6 {[%emt 0:07:58]} 5. c3 {[%emt 0:00:18]} Bxf3 {[%emt 0:00:17]} 6. Qxf3 {[%emt 0:00:07]} Qxf3 {[%emt 0:00:21]} 7. gxf3 {[%emt 0:00:01]} c5 {[%emt 0:01:20]} 8. f4 {[%emt 0:02:03]} Nc6 {[%emt 0:00:27]} 9. Bb2 {[%emt 0:06:56]} Nge7 {[%emt 0:01:14]} 10. d4 {[%emt 0:02:31]} Nf5 {[%emt 0:03:04]} 11. Nd2 {[%emt 0:01:11]} cxd4 {[%emt 0:01:18]} 12. cxd4 {[%emt 0:00:49]} Be7 {[%emt 0:01:40]} 13. a3 {[%emt 0:02:33]} O-O {[%emt 0:10:19]} 14. Bd3 {[%emt 0:01:04]} Nd6 {[%emt 0:02:05]} 15. h4 {[%emt 0:02:09]} h5 {[%emt 0:06:35]} 16. Rc1 {[%emt 0:03:33]} Rfc8 {[%emt 0:00:56]} 17. Ke2 {[%emt 0:05:10]} a5 {[%emt 0:04:03]} 18. a4 {[%emt 0:00:15]} Nb4 {[%emt 0:00:46]} 19. Bb1 {[%emt 0:05:46]} Rxc1 {[%emt 0:01:10]} 20. Rxc1 {[%emt 0:00:18]} Bxh4 {[%emt 0:10:10]} 21. Rh1 {[%emt 0:00:27]} Be7 {[%emt 0:00:07]} 22. Rxh5 {[%emt 0:00:08]} g6 {[%emt 0:03:33]} 23. Rh1 {[%emt 0:00:09]} Rc8 {[%emt 0:00:23]} 24. Rc1 {[%emt 0:03:45]} Rxc1 {[%emt 0:01:29]} 25. Bxc1 {[%emt 0:00:01]} f5 {[%emt 0:09:20]} 26. Nf3 {[%emt 0:03:32]} Nc6 {[%emt 0:07:41]} 27. Bd2 {[%emt 0:02:49]} Ne4 {[%emt 0:02:00]} 28. Be1 {[%emt 0:02:33]} Kf7 {[%emt 0:03:23]} 29. Bd3 {[%emt 0:14:38]} g5 {[%emt 0:03:46]} 30. fxg5 {[%emt 0:05:38]} Nxg5 {[%emt 0:00:10]} 31. Ne5+ {[%emt 0:02:47]} Nxe5 {[%emt 0:00:47]} 32. dxe5 {[%emt 0:00:07]} Bb4 {[%emt 0:01:40]} 33. Bxb4 {[%emt 0:00:49]} axb4 {[%emt 0:00:05]} 34. f3 {[%emt 0:00:06]} Ke7 {[%emt 0:01:36]} 35. Bb5 {[%emt 0:05:09]} b6 {[%emt 0:02:27]} 36. Kf2 {[%emt 0:00:55]} Nf7 {[%emt 0:00:21]} 37. f4 {[%emt 0:01:46]} Nd8 {[%emt 0:00:29]} 38. Ba6 {[%emt 0:00:46]} Nc6 {[%emt 0:00:10]} 39. Bd3 {[%emt 0:00:14]} Na5 {[%emt 0:00:36]} 40. Bc2 {[%emt 0:00:11]} Nb7 {[%emt 0:16:30]} 41. Ke2 {[%emt 0:16:02]} Nc5 {[%emt 0:00:29]} 42. Kd2 {[%emt 0:00:21]} Kd7 {[%emt 0:00:50]} 43. Ke2 {[%emt 0:01:14]} Kc6 {[%emt 0:00:36]} 44. Kd2 {[%emt 0:04:47]} Nb7 {[%emt 0:00:00]} 45. Bd1 {[%emt 0:00:00]} Nc5 {[%emt 0:00:00]} 46. Kc2 {[%emt 0:00:00]} Ne4 {[%emt 0:00:00]} 47. Bh5 {[%emt 0:00:00]} Nc5 {[%emt 0:00:00]} 48. Be8+ {[%emt 0:00:00]} Kc7 {[%emt 0:00:00]} 49. Bb5 {[%emt 0:00:00]} Kd8 {[%emt 0:00:00]} 50. Be2 {[%emt 0:00:00]} Ke7 {[%emt 0:00:00]} 51. Bf1 {[%emt 0:00:00]} Kf7 $11 {[%emt 0:00:00]} 52. Bb5 {[%emt 0:00:00]} Kg7 {[%emt 0:00:00]} 53. Be8 {[%emt 0:00:00]} Kf8 {[%emt 0:01:06]} 54. Bb5 {[%emt 0:00:00]} Ke7 1/2-1/2